bitfinex-derivatives/quotes_ETHF0:USTF0_20240901
["timestamp","ask_amount","ask_price","bid_price","bid_amount"]
[1725234022869,3.6181,2427.1,2426.7,0.58167916]
[1725234023078,3.6181,2427.1,2426.6,0.58167916]
[1725234023079,2.447,2427.1,2426.6,0.58167916]
[1725234023372,2.447,2427.1,2426.7,0.78769916]
[1725234023571,2.447,2427.1,2426.7,0.20602]
[1725234023766,2.447,2427.1,2426.7,0.78741823]
[1725234023972,2.447,2427.1,2426.7,0.20602]
[1725234024171,2.447,2427.1,2426.7,0.78741823]
[1725234024366,2.447,2427.1,2426.7,0.20602]
[1725234024673,3.41382,2426.9,2426.5,3.2078]
[1725234024865,3.2078,2426.9,2426.5,3.2078]
[1725234025372,3.2078,2426.9,2426.5,3.78917364]
[1725234025573,3.2078,2426.9,2426.5,3.2078]
[1725234026265,3.2078,2426.9,2426.5,3.78918087]
[1725234026464,3.2078,2426.9,2426.5,3.2078]
[1725234027276,3.2078,2426.9,2426.6,0.20603]
[1725234027476,3.2078,2426.9,2426.6,0.5815317]
[1725234027671,3.2078,2426.9,2426.5,3.41384]
[1725234028087,3.2078,2426.9,2426.6,0.78755753]
[1725234028272,2.447,2427.1,2426.7,0.58140778]
[1725234028471,2.447,2427.1,2426.9,0.206]
[1725234029175,4.12,2427.0,2426.5,1.07711304]
[1725234029377,3.2078,2426.8,2426.6,0.58156552]
[1725234029678,3.2078,2426.8,2426.4,0.58160248]
[1725234029877,1.2294,2426.7,2426.5,0.58160248]
[1725234030078,1.2296,2426.6,2426.3,7.04]
[1725234030273,1.2296,2426.6,2426.4,0.58195167]
[1725234030474,1.2296,2426.6,2426.5,0.58195167]
[1725234030673,1.2296,2426.6,2426.4,0.58195169]
[1725234030978,1.2357,2426.5,2426.3,2.85]
[1725234031171,1.2357,2426.5,2426.4,0.5818636]
[1725234031367,1.2357,2426.5,2426.3,2.85]
[1725234031573,1.23578098,2426.6,2426.4,0.58186033]
[1725234031772,1.23578098,2426.6,2426.5,0.58186033]
[1725234032077,1.23578098,2426.6,2426.3,2.85]
[1725234032678,1.23578098,2426.6,2426.4,0.58191294]
[1725234032882,1.23578098,2426.6,2426.3,2.85]
[1725234033076,1.23578098,2426.6,2426.4,0.58185429]
[1725234033281,1.23578098,2426.6,2426.3,2.85]
[1725234033580,6.844,2427.6,2426.5,8.31598876]
[1725234033581,3.2078,2427.2,2426.5,8.31598876]
[1725234033784,3.2078,2427.2,2426.9,0.20601]
[1725234034393,3.2078,2427.2,2427.0,0.58140765]
[1725234034683,3.4431,2427.5,2427.1,0.20599]
[1725234034684,0.00618098,2427.3,2427.1,0.20599]
[1725234034884,0.00618098,2427.3,2427.2,0.58115171]
[1725234035384,0.00618098,2427.3,2427.1,0.58115171]
[1725234035578,0.00618098,2427.3,2427.2,0.58115171]
[1725234035882,0.00618098,2427.3,2427.1,0.58086624]
[1725234036085,0.00618098,2427.3,2427.0,1.3475]
[1725234036276,0.00618098,2427.3,2427.1,0.5808135]
[1725234036477,0.00618098,2427.3,2427.1,4.12]
[1725234036678,0.00618098,2427.3,2427.2,0.58075426]
[1725234036883,0.00618098,2427.3,2427.2,4.70075426]
[1725234037186,0.00618098,2427.3,2427.2,4.12]
[1725234037488,0.00618098,2427.3,2427.2,4.70077908]
[1725234037679,0.00618098,2427.3,2427.2,4.70076738]
[1725234037981,0.00618098,2427.3,2427.2,4.7008281]
[1725234038179,0.00618098,2427.3,2427.2,0.5808281]
[1725234038885,0.00618098,2427.3,2427.2,0.58091897]
[1725234040185,0.00618098,2427.3,2427.2,0.58098147]
[1725234041390,0.00618098,2427.3,2427.2,4.70098147]
[1725234041584,0.00618098,2427.3,2427.2,5.55194537]
[1725234042191,0.00618098,2427.3,2427.2,4.12]
[1725234042490,0.00618098,2427.3,2427.2,4.97102716]
[1725234042688,0.00618098,2427.3,2427.2,4.70075409]
[1725234043072,0.00618098,2427.3,2427.2,4.32598]
[1725234043276,0.00618098,2427.3,2427.2,8.02701531]
[1725234043481,1.1826,2427.7,2427.5,0.20596]
[1725234043679,1.1826,2427.7,2427.6,0.20187205]
[1725234044089,1.1826,2427.7,2427.6,0.78263198]
[1725234044276,4.15678098,2428.0,2427.6,0.78263198]
[1725234044277,3.2078,2428.1,2427.9,0.20592]
[1725234044484,3.2078,2428.1,2428.0,0.58075993]
[1725234045283,3.2078,2428.1,2428.0,1.43162125]
[1725234045486,3.2078,2428.1,2428.0,0.58075993]
[1725234046080,3.2078,2428.1,2428.0,1.63768718]
[1725234046488,0.00618098,2428.2,2428.1,0.20591]
[1725234046687,0.00618098,2428.2,2428.1,1.63767718]
[1725234046989,4.33048098,2428.2,2428.1,1.43176718]
[1725234047295,12.97458098,2428.2,2427.6,1.07711304]
[1725234047588,0.00618098,2428.2,2427.7,4.77884128]
[1725234047776,0.00618098,2428.2,2427.8,2.29391304]
[1725234047981,0.00618098,2428.2,2427.8,1.07711304]
[1725234047982,3.2078,2428.0,2427.8,1.07711304]
[1725234048285,1.1512,2427.9,2427.6,1.07711304]
[1725234048483,1.1512,2427.9,2427.5,4.46566956]
[1725234048484,3.2078,2427.7,2427.5,3.92711304]
[1725234048982,1.1512,2427.9,2427.5,3.92711304]
[1725234048983,1.1494,2427.8,2427.5,3.92711304]
[1725234049184,3.2078,2427.7,2427.4,1.07711304]
[1725234049576,3.2078,2427.7,2427.3,3.92711304]
[1725234049779,3.2078,2427.7,2427.4,1.07711304]
[1725234049980,3.2078,2428.0,2427.5,4.13747742]
[1725234050191,3.2078,2428.0,2427.8,2.85]
[1725234050378,3.2078,2428.0,2427.8,1.07711304]
[1725234050575,3.2078,2428.0,2427.5,4.70114055]
[1725234050576,7.3262,2428.0,2427.7,1.07711304]
[1725234050778,2.85,2427.9,2427.2,1.07711304]
[1725234050991,3.2078,2427.4,2427.0,1.07711304]
[1725234051189,3.49,2427.3,2427.0,1.07711304]
[1725234051385,3.2078,2427.1,2426.9,0.00618098]
[1725234051880,3.2078,2427.1,2426.9,1.08329402]
[1725234052087,1.1629,2427.3,2427.0,4.12]
[1725234052287,1.1629,2427.3,2427.1,0.20599]
[1725234052482,1.1629,2427.3,2427.2,1.07711304]
[1725234052681,1.1346,2427.5,2427.3,0.20597]
[1725234052988,1.1346,2427.5,2427.2,3.34299586]
[1725234053188,2.2975,2427.5,2427.2,1.28309304]
[1725234053387,3.2078,2427.6,2427.3,0.20597]
[1725234053589,3.2078,2427.6,2427.3,1.07711304]
[1725234053892,3.2078,2427.6,2427.4,1.37836]
[1725234054080,3.2078,2427.6,2427.4,2.45547304]
[1725234054284,3.2078,2427.6,2427.4,1.37836]
[1725234055596,3.2078,2427.6,2427.4,1.1724]
[1725234057593,1.1766,2427.5,2427.4,1.1724]
[1725234057788,1.1766,2427.5,2427.4,1.37837]
[1725234057984,1.1766,2427.5,2427.4,5.49757]
[1725234058486,3.2078,2427.6,2427.5,0.20596]
[1725234058694,2.3161,2428.0,2427.6,0.20595]
[1725234058695,1.1766,2427.9,2427.6,0.20595]
[1725234058894,1.1766,2427.9,2427.5,2.49979924]
[1725234059087,1.1766,2427.9,2427.8,0.20593]
[1725234059291,1.1766,2427.9,2427.8,0.58022086]
[1725234060491,2.3608,2427.9,2427.5,2.49979924]
[1725234060686,3.2078,2427.7,2427.4,1.07711304]
[1725234060897,3.2078,2427.7,2427.5,0.58031604]
[1725234061094,7.327,2427.7,2427.2,1.07711304]
[1725234061290,3.2078,2427.4,2427.0,1.07711304]
[1725234061491,1.149,2427.3,2427.2,0.20598]
[1725234061795,3.2078,2427.7,2427.4,0.20596]
[1725234062003,1.149,2427.6,2427.4,0.20596]
[1725234062788,1.149,2427.6,2427.5,0.58098681]
[1725234063090,1.149,2427.6,2427.2,1.07561907]
[1725234063091,1.35495,2427.6,2427.2,1.07561907]
[1725234063290,3.2078,2427.4,2427.1,1.07561907]
[1725234063490,1.1992,2427.3,2427.1,1.07561907]
[1725234063690,1.1992,2427.3,2427.2,0.58105676]
[1725234063901,2.4198,2427.3,2426.9,1.08180005]
[1725234064096,2.4198,2427.3,2427.0,0.5812375]
[1725234064297,2.4198,2427.3,2427.1,0.5812375]
[1725234064493,2.4198,2427.3,2427.2,0.58127655]
[1725234064901,2.4198,2427.3,2426.9,0.21219098]
[1725234064902,6.5398,2427.3,2426.9,0.21219098]
[1725234065094,2.4198,2427.3,2426.9,0.21219098]
[1725234065299,3.2078,2427.4,2426.9,1.08180005]
[1725234065494,3.2078,2427.4,2427.1,0.20599]
[1725234065697,3.2078,2427.4,2427.2,0.58144049]
[1725234065896,3.2078,2427.4,2427.1,0.20599]
[1725234066101,3.2078,2427.4,2427.2,0.58136677]
[1725234066300,3.2078,2427.4,2427.3,0.58134277]
[1725234067305,3.1876,2427.4,2427.3,0.58134277]
[1725234067802,1.2173,2427.5,2427.3,0.78731277]
[1725234068007,1.2173,2427.5,2427.2,1.07561907]
[1725234068205,1.2173,2427.5,2427.4,0.58132876]
[1725234068597,5.3365,2427.5,2427.4,0.58132876]
[1725234069002,5.3365,2427.5,2427.1,1.07561907]
[1725234069311,1.2173,2427.5,2427.2,0.58139962]
[1725234069498,1.2173,2427.5,2427.3,0.58139962]
[1725234069704,1.2173,2427.5,2427.1,1.07561907]
[1725234069902,1.2173,2427.5,2427.2,0.58134348]
[1725234070105,1.2173,2427.5,2427.3,0.58134348]
[1725234070302,3.2078,2427.4,2427.1,1.07561907]
[1725234070518,3.2078,2427.4,2426.9,1.62185054]
[1725234070519,0.20599,2427.1,2426.9,0.00618098]
[1725234070810,3.41379,2427.1,2427.0,0.0202]
[1725234070996,7.53379,2427.1,2427.0,0.0202]
[1725234071598,7.3278,2427.1,2427.0,0.0202]
[1725234072105,7.3278,2427.1,2427.0,0.60175831]
[1725234072301,7.3278,2427.1,2427.0,0.0202]
[1725234073796,7.3278,2427.1,2427.0,0.60171269]
[1725234074198,7.3278,2427.1,2427.0,0.0202]
[1725234074405,7.3278,2427.1,2427.0,0.60172791]
[1725234074816,7.3278,2427.1,2427.0,0.0202]
[1725234075205,7.53379,2427.1,2427.0,0.60172143]
[1725234075405,7.53379,2427.1,2427.0,0.0202]
[1725234075703,7.3278,2427.1,2427.0,0.0202]
[1725234075908,7.53379,2427.1,2427.0,0.0202]
[1725234076098,13.53379,2427.1,2427.0,0.0202]
[1725234076512,13.63682158,2427.1,2427.0,0.0202]
[1725234077104,13.53379,2427.1,2427.0,0.0202]
[1725234077304,0.206,2427.0,2426.9,0.00618098]
[1725234077506,4.326,2427.0,2426.9,0.00618098]
[1725234077712,10.326,2427.0,2426.9,0.00618098]
[1725234080518,3.2078,2427.1,2426.9,0.00618098]
[1725234081012,7.53379,2427.1,2426.9,0.00618098]
[1725234081214,4.326,2427.0,2426.9,0.00618098]
[1725234081609,10.326,2427.0,2426.9,0.00618098]
[1725234081907,11.514,2427.0,2426.9,0.00618098]
[1725234083119,5.514,2427.0,2426.9,0.00618098]
[1725234083321,11.514,2427.0,2426.9,0.00618098]
[1725234084317,15.96355106,2427.0,2426.9,0.00618098]
[1725234085224,5.308,2427.0,2426.9,0.00618098]
[1725234086617,1.188,2427.0,2426.9,0.00618098]
[1725234086816,4.12,2427.0,2426.9,0.00618098]
[1725234087118,4.326,2427.0,2426.9,0.00618098]
[1725234087324,10.326,2427.0,2426.9,0.00618098]
[1725234087520,4.326,2427.0,2426.9,0.00618098]
[1725234088722,15.04741838,2427.0,2426.9,0.00618098]
[1725234088917,15.15046012,2427.0,2426.9,0.00618098]
[1725234089320,15.15046012,2427.0,2426.3,3.9784]
[1725234089321,17.79446012,2427.0,2426.0,1.09581907]
[1725234089520,3.2078,2426.5,2426.1,0.58171519]
[1725234089826,2.3918,2426.4,2426.0,4.31088]
[1725234090014,2.3918,2426.4,2426.1,0.58171172]
[1725234090218,1.2217,2426.4,2426.0,4.31088]
[1725234090426,1.22788098,2426.4,2426.0,4.31706098]
[1725234090921,1.22788098,2426.4,2426.0,4.11098098]
[1725234091326,1.22788098,2426.4,2426.0,4.69274133]
[1725234091729,1.22788098,2426.4,2426.0,4.11098098]
[1725234091930,1.22788098,2426.4,2426.0,1.84274619]
[1725234092121,1.22788098,2426.4,2426.0,1.26098098]
[1725234093219,3.2078,2426.1,2426.0,1.26098098]
[1725234094324,0.00618098,2426.4,2426.0,8.43866098]
[1725234094532,0.00618098,2426.4,2426.0,4.31706098]
[1725234094719,0.00618098,2426.4,2426.0,4.11098098]
[1725234095026,0.00618098,2426.4,2426.0,4.31707098]
[1725234098134,3.2078,2426.1,2426.0,4.11098098]
[1725234099022,3.2078,2426.1,2426.0,1.26098098]
[1725234101628,3.21398098,2426.4,2426.0,1.26098098]
[1725234102634,4.43778098,2426.4,2426.0,1.26098098]
[1725234103034,8.76543098,2426.4,2426.0,0.02638098]
[1725234103227,4.29240461,2426.3,2426.0,0.02638098]
[1725234103532,3.21398098,2426.4,2426.0,0.02638098]
[1725234105822,7.33558098,2426.4,2426.0,0.02638098]
[1725234106132,4.74484314,2426.3,2426.0,0.02638098]
[1725234106433,3.21398098,2426.4,2426.0,0.02638098]
[1725234108325,4.36201708,2426.3,2426.0,0.02638098]
[1725234108528,4.36201708,2426.3,2426.1,2.3849]
[1725234108726,3.21398098,2426.4,2426.0,0.02638098]
[1725234108928,3.21398098,2426.4,2426.0,1.21718098]
[1725234112445,0.00618098,2426.4,2426.1,2.85]
[1725234113329,0.00618098,2426.4,2426.1,3.05607]
[1725234114325,0.00618098,2426.4,2426.2,0.58179631]
[1725234114525,0.00618098,2426.4,2426.1,2.85]
[1725234114730,0.00618098,2426.4,2426.2,0.58189615]
[1725234114943,0.00618098,2426.4,2426.0,1.42326098]
[1725234115142,0.00618098,2426.4,2426.1,0.581931]
[1725234115736,0.00618098,2426.4,2426.2,0.58190042]
[1725234115933,0.00618098,2426.4,2426.0,1.42326098]
[1725234116133,3.56198098,2426.4,2426.0,1.21718098]
[1725234116438,3.56198098,2426.4,2426.1,0.5818848]
[1725234116636,2.36498098,2426.4,2426.2,0.5818848]
[1725234116934,2.36498098,2426.4,2426.1,0.20607]
[1725234117136,0.00618098,2426.4,2426.2,0.58189022]
[1725234117541,0.00618098,2426.4,2426.3,0.58189022]
[1725234117847,0.00618098,2426.4,2426.3,1.78709022]
[1725234120241,0.00618098,2426.4,2426.3,1.2052]
[1725234120633,0.00618098,2426.4,2426.3,0.5820288]
[1725234121242,4.12778098,2426.4,2426.3,0.5820288]
[1725234121444,4.12778098,2426.4,2426.0,0.02638098]
[1725234121643,2.2795,2426.3,2426.0,0.02638098]
[1725234122233,2.2795,2426.3,2426.1,0.58207054]
[1725234122844,2.2795,2426.3,2426.0,0.02638098]
[1725234122845,5.4873,2426.3,2426.0,0.02638098]
[1725234123051,5.4873,2426.3,2426.1,0.58207129]
[1725234123244,5.4873,2426.3,2426.2,0.58207129]
[1725234123742,5.4873,2426.3,2426.0,0.02638098]
[1725234123942,5.4873,2426.3,2426.1,0.58208567]
[1725234124142,5.4873,2426.3,2426.2,0.58208567]
[1725234124649,9.6089,2426.3,2426.2,0.58208567]
[1725234125843,9.6089,2426.3,2426.0,0.02638098]
[1725234126149,1.195,2426.2,2426.0,0.02638098]
[1725234126450,1.195,2426.2,2426.1,0.58208529]
[1725234126834,5.3166,2426.2,2426.1,0.58208529]
[1725234129151,5.3166,2426.2,2426.0,0.02638098]
[1725234129452,1.195,2426.2,2426.1,0.58208042]
[1725234129746,5.4873,2426.3,2426.1,0.58210172]
[1725234129949,9.6089,2426.3,2426.2,0.58210172]
[1725234130140,5.4873,2426.3,2426.2,0.58210172]
[1725234130341,9.6089,2426.3,2426.2,0.58210172]
[1725234132053,9.71196117,2426.3,2426.2,0.58210172]
[1725234132343,9.71196117,2426.3,2426.2,0.5821148]
[1725234132548,9.6089,2426.3,2426.2,0.5821148]
[1725234132749,9.6089,2426.3,2426.0,0.02638098]
[1725234132948,5.4873,2426.3,2426.1,0.58211477]
[1725234133150,8.44036414,2426.3,2426.0,0.02638098]
[1725234133344,4.70490669,2426.2,2426.0,0.02638098]
[1725234134249,0.1030609,2426.1,2426.0,0.02638098]
[1725234134451,4.70490669,2426.2,2426.0,0.60849105]
[1725234134649,0.10306281,2426.1,2426.0,0.02638098]
[1725234134852,0.10306281,2426.1,2426.0,0.60848565]
[1725234135444,4.70490669,2426.2,2426.0,0.60848565]
[1725234135643,4.70490669,2426.2,2426.0,0.02638098]
[1725234135839,4.70490669,2426.2,2426.1,0.58210467]
[1725234136240,8.82650669,2426.2,2426.1,0.58210467]
[1725234136446,8.92956761,2426.2,2426.1,0.58210467]
[1725234137351,4.22466092,2426.2,2426.1,0.58210467]
[1725234138053,8.63563486,2426.2,2426.1,0.58210467]
[1725234138752,8.63563486,2426.2,2426.0,0.02638098]
[1725234138753,8.85485927,2426.2,2426.0,0.02638098]
[1725234139053,4.41097394,2426.2,2426.1,0.58212349]
[1725234139261,4.1216,2426.1,2426.0,0.02638098]
[1725234139555,4.22466645,2426.1,2426.0,0.60849951]
[1725234140452,8.3373,2426.3,2426.0,0.60849951]
[1725234140655,0.10305743,2426.2,2426.1,0.58211853]
[1725234141154,4.22465743,2426.2,2426.1,0.58211853]
[1725234142249,4.22465743,2426.2,2426.0,0.02638098]
[1725234142550,4.22465743,2426.2,2426.1,1.1642032]
[1725234142551,4.48712775,2426.2,2426.1,1.1642032]
[1725234142752,8.60872775,2426.2,2426.1,1.1642032]
[1725234143151,4.32772332,2426.2,2426.1,1.1642032]
[1725234143851,0.10306318,2426.2,2426.1,0.58210181]
[1725234144246,0.00618098,2426.4,2426.1,11.89370181]
[1725234144552,0.00618098,2426.4,2426.3,1.07561907]
[1725234144742,0.00618098,2426.4,2426.3,6.96932088]
[1725234144947,0.00618098,2426.4,2426.3,14.18132088]
[1725234145350,0.00269508,2426.4,2426.3,22.22615504]
[1725234145655,3.2078,2426.9,2426.5,0.20604]
[1725234145853,3.2078,2426.9,2426.6,2.8505871]
[1725234146055,3.2078,2426.9,2426.7,0.58172734]
[1725234146256,3.2078,2426.9,2426.8,0.58172734]
[1725234146852,3.2078,2426.9,2426.8,4.70252734]
[1725234148649,3.2078,2426.9,2426.8,4.1208]
[1725234148850,0.00618098,2427.1,2426.8,4.70234318]
[1725234149060,0.00618098,2427.1,2426.9,1.79514318]
[1725234149252,0.00618098,2427.1,2427.0,0.58154318]
[1725234149448,0.00618098,2427.1,2427.0,1.74094318]
[1725234149849,0.00618098,2427.1,2427.0,1.1594]
[1725234159358,0.00618098,2427.1,2427.0,5.2794]
[1725234159569,0.00618098,2427.1,2427.0,11.4854]
[1725234159865,0.00618098,2427.1,2427.0,12.06696893]
[1725234161665,9.8e-07,2427.1,2427.0,12.06681117]
[1725234161864,9.8e-07,2427.1,2427.0,17.47401886]
[1725234162065,6.7607,2428.0,2427.5,0.20596]
[1725234162263,6.7607,2428.0,2427.6,2.3634]
[1725234162563,6.7607,2428.0,2427.6,2.56934]
[1725234162966,5.56758098,2428.0,2427.7,0.20594]
[1725234163165,3.21398098,2428.0,2427.8,2.85]
[1725234163365,3.21398098,2428.0,2427.9,0.20592]
[1725234163565,3.21398098,2428.0,2427.9,4.1184]
[1725234163765,3.21398098,2428.0,2427.6,2.36958098]
[1725234163969,3.4055,2427.9,2427.6,2.36958098]
[1725234165373,3.4055,2427.9,2427.6,0.00618098]
[1725234166464,3.61143,2427.9,2427.6,0.00618098]
[1725234166665,3.2078,2427.7,2427.6,0.00618098]
[1725234167870,3.4055,2427.9,2427.6,0.00618098]
[1725234168868,1.1538,2427.9,2427.6,0.21213098]
[1725234169070,1.1538,2427.9,2427.7,1.31034]
[1725234169275,3.21398098,2428.0,2427.8,0.20593]
[1725234169470,3.21398098,2428.0,2427.8,1.37463]
[1725234170876,0.00618098,2428.0,2427.8,8.1371]
[1725234171378,0.00618098,2428.0,2427.9,0.20592]
[1725234171775,0.00618098,2428.0,2427.9,4.32432]
[1725234173273,0.00618098,2428.0,2427.9,0.20592]
[1725234173665,0.00618098,2428.0,2427.8,2.85]
[1725234173877,0.00618098,2428.0,2427.7,2.42974]
[1725234174777,0.00618098,2428.0,2427.8,0.20593]
[1725234175281,0.00618098,2428.0,2427.9,0.20592]
[1725234175780,0.00618098,2428.0,2427.9,4.32432]
[1725234177176,0.00618098,2428.0,2427.9,4.1184]
[1725234177377,0.00618098,2428.0,2427.8,0.20593]
[1725234178680,0.00618098,2428.0,2427.7,1.31034]
[1725234179483,0.00618098,2428.0,2427.7,1.1044]
[1725234179874,0.00618098,2428.0,2427.6,2.85618098]
[1725234180076,0.00618098,2428.0,2427.6,0.00618098]
[1725234180077,3.2078,2427.8,2427.6,0.00618098]
[1725234180377,3.3616,2427.7,2427.6,0.00618098]
[1725234181587,2.2357,2427.7,2427.6,0.00618098]
[1725234181786,1.1094,2427.7,2427.6,0.00618098]
[1725234182378,0.00618098,2428.0,2427.8,0.20593]
[1725234182584,0.00618098,2428.0,2427.9,1.1044]
[1725234183585,0.00618098,2428.0,2427.9,5.42872]
[1725234183776,0.00618098,2428.0,2427.9,16.79774636]
[1725234184287,9.8e-07,2428.0,2427.9,16.79774636]
[1725234184580,3.2078,2428.8,2427.9,16.79774636]
[1725234184581,1.1487,2428.7,2428.6,0.20586]
[1725234184784,3.2078,2429.1,2428.7,2.85]
[1725234184975,2.2717,2428.7,2428.5,2.85]
[1725234185285,2.2717,2428.7,2428.4,0.20588]
[1725234185887,3.4282,2428.7,2428.3,3.05589]
[1725234186071,3.4282,2428.7,2428.4,0.20588]
[1725234186986,2.2717,2428.7,2428.5,0.20587]
[1725234187283,2.2717,2428.7,2428.5,3.05587]
[1725234187582,2.2717,2428.7,2428.5,6.9676]
[1725234187880,2.2717,2428.7,2428.2,2.2474]
[1725234187881,2.2717,2428.7,2428.3,3.05589]
[1725234191488,2.2717,2428.7,2428.3,2.85]
[1725234191684,2.2717,2428.7,2427.9,2.85]
[1725234191685,3.41368,2428.5,2427.9,2.85]
[1725234191889,1.26148,2428.4,2427.9,2.85]
[1725234192088,1.26148,2428.4,2427.7,9.3432]
[1725234192290,3.2078,2428.2,2427.7,8.1905]
[1725234192694,1.1201,2428.1,2427.7,8.1905]
[1725234192882,1.1201,2428.1,2427.7,2.85]
[1725234193283,1.1201,2428.1,2427.6,0.00618098]
[1725234195084,3.2078,2428.0,2427.6,0.00618098]
[1725234195585,1.1485,2427.9,2427.6,0.00618098]
[1725234196494,1.1485,2427.9,2427.7,2.85]
[1725234197191,1.1485,2427.9,2427.6,0.00618098]
[1725234197399,2.2204,2427.9,2427.6,0.00618098]
[1725234201803,2.2204,2427.9,2427.6,1.05028098]
[1725234203805,2.2204,2427.9,2427.6,1.25623098]
[1725234204708,1.1485,2427.9,2427.7,3.05594]
[1725234204902,1.1485,2427.9,2427.7,4.20014]
[1725234205706,1.1201,2428.1,2427.8,0.5788253]
[1725234205909,1.1201,2428.1,2427.7,4.20014]
[1725234206103,1.1201,2428.1,2427.8,0.57878332]
[1725234206408,4.15678098,2428.5,2427.8,0.57878332]
[1725234206409,3.2078,2428.6,2428.0,6.0578]
[1725234206603,0.00618098,2428.8,2428.6,0.20586]
[1725234206797,0.00618098,2428.8,2428.7,0.20586]
[1725234207306,0.00618098,2428.8,2428.7,7.37694645]
[1725234207605,0.00618098,2428.8,2428.7,7.95517215]
[1725234208195,0.00618098,2428.8,2428.7,13.95517215]
[1725234208411,0.00269775,2428.8,2428.7,13.95517215]
[1725234210499,0.00269775,2428.8,2428.7,13.17108645]
[1725234210808,0.00269775,2428.8,2428.7,13.95517215]
[1725234211011,0.00269775,2428.8,2428.7,13.37694645]
[1725234212398,0.00269775,2428.8,2428.6,0.5782257]
[1725234212596,0.00269775,2428.8,2428.5,2.85]
[1725234213109,0.00269775,2428.8,2428.5,3.05587]
[1725234213298,0.00269775,2428.8,2428.6,0.20501134]
[1725234213502,0.00269775,2428.8,2428.5,3.05587]
[1725234213809,0.00269775,2428.8,2428.5,7.17347]
[1725234214006,0.00269775,2428.8,2428.7,3.05586]
[1725234214201,0.00269775,2428.8,2428.7,7.37975359]
[1725234216399,0.00269775,2428.8,2428.7,8.51745359]
[1725234219411,0.00269775,2428.8,2428.7,8.31159359]
[1725234219908,0.00269775,2428.8,2428.7,8.51745359]
[1725234220308,0.00269775,2428.8,2428.7,8.31159359]
[1725234220910,0.00269775,2428.8,2428.7,8.51745359]
[1725234221105,0.00269775,2428.8,2428.7,9.64085359]
[1725234222111,0.00269775,2428.8,2428.7,0.20629359]
[1725234222308,0.00269775,2428.8,2428.6,0.20586]
[1725234223015,0.00269775,2428.8,2428.6,0.4137198]
[1725234223208,0.00269775,2428.8,2428.6,0.20586]
[1725234223720,0.00269775,2428.8,2428.7,0.20586]
[1725234224406,0.00269775,2428.8,2428.7,7.17346]
[1725234224802,0.00269775,2428.8,2428.7,8.26866]
[1725234225022,0.00269775,2428.8,2428.7,19.72490445]
[1725234225310,1.0523,2429.4,2429.3,0.20581]
[1725234225504,3.2078,2429.6,2429.3,3.05581]
[1725234225709,3.2078,2429.6,2429.4,1.1256]
[1725234226406,3.2078,2429.6,2429.5,7.17179]
[1725234226610,0.00618098,2429.7,2429.6,0.20578]
[1725234226611,9.8e-07,2429.7,2429.6,0.20578]
[1725234226805,1.1014,2430.7,2430.2,0.20573]
[1725234227005,1.1014,2430.7,2430.3,0.20572]
[1725234227207,2.2962,2430.9,2430.5,3.0557]
[1725234227411,2.2962,2430.9,2430.5,2.85]
[1725234227611,2.2962,2430.9,2430.4,1.1256]
[1725234227810,2.30028407,2430.9,2430.3,2.85]
[1725234228213,3.2078,2430.7,2430.3,2.85]
[1725234228413,2.30028407,2430.9,2430.3,2.85]
[1725234229324,3.2078,2430.7,2430.1,2.85]
[1725234229906,3.2078,2430.7,2430.3,2.85]
[1725234230112,1.1378,2430.8,2430.3,2.85]
[1725234230310,3.2078,2430.7,2430.3,2.85]
[1725234231119,1.1378,2430.8,2430.3,2.85]
[1725234231310,1.1378,2430.8,2430.5,2.85]
[1725234232318,1.1378,2430.8,2430.0,4.3334]
[1725234232319,3.2078,2430.7,2430.3,2.85]
[1725234232526,1.1159,2430.6,2430.3,2.85]
[1725234236821,1.0957,2430.6,2430.3,2.85]
[1725234238214,1.36655407,2430.9,2430.5,3.0557]
[1725234238215,1.16088407,2430.9,2430.5,3.0557]
[1725234238531,1.16088407,2430.9,2430.7,2.85]
[1725234239530,4.1136,2430.8,2430.6,0.00618098]
[1725234239714,4.57435407,2430.9,2430.6,0.00618098]
[1725234239917,4.1136,2430.8,2430.6,0.00618098]
[1725234240119,5.2569,2430.8,2430.6,0.00618098]
[1725234240325,4.1144,2430.7,2430.6,0.00618098]
[1725234240928,4.32009,2430.7,2430.6,0.00618098]
[1725234242021,4.1144,2430.7,2430.6,0.00618098]
[1725234242630,4.32009,2430.7,2430.6,0.00618098]
[1725234242924,4.32009,2430.7,2430.3,4.19]
[1725234242925,10.1144,2430.7,2430.3,4.19]
[1725234243124,3.2078,2430.4,2430.3,4.19]
[1725234243338,7.3222,2430.4,2429.9,2.85]
[1725234243627,2.2611,2430.3,2429.9,2.85]
[1725234244017,2.2611,2430.3,2429.9,2.85618098]
[1725234245121,2.2611,2430.3,2429.9,3.06193098]
[1725234245330,2.2611,2430.3,2430.1,2.85]
[1725234248529,1.1052,2430.3,2430.2,0.20573]
[1725234248724,1.1052,2430.3,2430.2,1.31943]
[1725234249323,3.2078,2430.7,2430.3,0.20572]
[1725234249626,1.0793,2430.7,2430.3,4.20012]
[1725234249828,1.0793,2430.7,2430.3,3.9944]
[1725234250026,1.0793,2430.7,2430.3,4.20012]
[1725234250226,4.2871,2430.7,2430.2,1.1137]
[1725234250426,8.4015,2430.7,2429.9,2.85618098]
[1725234250722,8.4015,2430.7,2429.9,0.00618098]
[1725234250723,3.2078,2430.4,2429.9,0.00618098]
[1725234250929,3.2168,2430.3,2429.9,0.00618098]
[1725234252924,3.2168,2430.3,2429.9,2.85618098]
[1725234253128,3.2168,2430.3,2430.1,2.85]
[1725234253830,7.332,2430.3,2429.9,2.85618098]
[1725234254132,3.2168,2430.3,2429.9,2.85618098]
[1725234255524,3.42252,2430.3,2429.9,2.85618098]
[1725234257437,0.20573,2430.2,2429.9,2.85618098]
[1725234257626,3.2168,2430.3,2429.9,2.85618098]
[1725234257828,3.42253,2430.3,2429.9,2.85618098]
[1725234258531,3.42253,2430.3,2429.9,0.00618098]
[1725234258532,3.2078,2430.1,2429.9,0.00618098]
[1725234258726,0.20575,2430.0,2429.9,0.00618098]
[1725234258932,0.20578,2429.7,2429.3,3.8841]
[1725234259132,5.3242,2429.6,2429.3,3.8841]
[1725234259335,5.52998,2429.6,2429.2,1.0355]
[1725234259534,1.1252,2429.5,2429.2,1.0355]